[Event "2018 O2C Doeberl Cup Major"]
[Site "Canberra Southern Cross Club"]
[Date "2018.03.30"]
[Round "1.1"]
[White "Mcgowan, Cameron"]
[Black "Watson, James"]
[Result "1-0"]
[ECO "B22"]
[WhiteElo "1960"]
[BlackElo "1707"]
[PlyCount "33"]
[EventDate "2018.??.??"]
[TimeControl "90+30"]
[WhiteClock "1:17:32"]
[BlackClock "0:51:44"]

1. e4 {[%emt 0:00:00]} c5 {[%emt 0:00:00]} 2. Nf3 {[%emt 0:00:00]} g6 {[%emt 0:
00:00]} 3. c3 {[%emt 0:00:00]} d5 {[%emt 0:00:00]} 4. exd5 {[%emt 0:00:00]}
Qxd5 {[%emt 0:00:00]} 5. d4 {[%emt 0:00:00]} Bg4 {[%emt 0:00:00]} 6. Be2 {
[%emt 0:00:00]} cxd4 {[%emt 0:00:00]} 7. cxd4 {[%emt 0:00:00]} Nc6 {[%emt 0:00:
00]} 8. h3 {[%emt 0:00:00]} Bxf3 {[%emt 0:00:00]} 9. Bxf3 {[%emt 0:00:00]} Qd7
{[%emt 0:00:00]} 10. d5 {[%emt 0:00:00]} Ne5 {[%emt 0:00:00]} 11. Be2 {[%emt 0:
00:00]} Qd6 {[%emt 0:00:00]} 12. Nc3 {[%emt 0:00:00]} Nd7 {[%emt 0:00:00]} 13.
Nb5 {[%emt 0:00:00]} Qb8 {[%emt 0:00:00]} 14. Qc2 {[%emt 0:00:00]} Qc8 {
[%emt 0:00:00]} 15. Nc7+ {[%emt 0:00:00]} Kd8 {[%emt 0:00:00]} 16. Bf4 {
[%emt 0:00:00]} Bh6 {[%emt 0:00:00]} 17. Bxh6 {[%emt 0:03:53]} 1-0

[Event "2018 O2C Doeberl Cup Major"]
[Site "Canberra Southern Cross Club"]
[Date "2018.03.31"]
[Round "3.1"]
[White "Mcgowan, Cameron"]
[Black "Mendes Da Costa, Alex"]
[Result "1-0"]
[ECO "C65"]
[WhiteElo "1960"]
[BlackElo "1907"]
[PlyCount "97"]
[EventDate "2018.??.??"]
[TimeControl "90+30"]

1. e4 {[%emt 0:07:01]} e5 {[%emt 0:00:11]} 2. Nf3 {[%emt 0:00:04]} Nc6 {
[%emt 0:00:13]} 3. Bc4 {[%emt 0:00:04]} Bc5 {[%emt 0:00:44]} 4. c3 {[%emt 0:00:
05]} Qe7 {[%emt 0:00:50]} 5. O-O {[%emt 0:01:54]} d6 {[%emt 0:00:46]} 6. d3 {
[%emt 0:10:02]} Nf6 {[%emt 0:01:44]} 7. h3 {[%emt 0:01:21]} Be6 {[%emt 0:17:05]
} 8. Bb5 {[%emt 0:06:38]} Bd7 {[%emt 0:01:49]} 9. Re1 {[%emt 0:01:50]} O-O {
[%emt 0:06:26]} 10. Nbd2 {[%emt 0:07:30]} a6 {[%emt 0:01:08]} 11. Ba4 {[%emt 0:
00:39]} Rad8 {[%emt 0:07:55]} 12. Nf1 {[%emt 0:01:37]} Rfe8 {[%emt 0:05:27]}
13. Bg5 {[%emt 0:02:34]} Qf8 {[%emt 0:03:45]} 14. Bxf6 {[%emt 0:19:37]} gxf6 {
[%emt 0:00:10]} 15. Ng3 {[%emt 0:00:48]} b5 {[%emt 0:05:10]} 16. Bb3 {[%emt 0:
01:31]} Qh6 {[%emt 0:07:33]} 17. Rf1 {[%emt 0:11:24]} Ne7 {[%emt 0:01:07]} 18.
Nh2 {[%emt 0:06:13]} f5 {[%emt 0:03:34]} 19. exf5 {[%emt 0:11:25]} Nxf5 {
[%emt 0:01:23]} 20. Ng4 {[%emt 0:03:19]} Qg6 {[%emt 0:01:16]} 21. Ne4 {[%emt 0:
04:19]} Kh8 {[%emt 0:05:29]} 22. Nxc5 {[%emt 0:09:07]} dxc5 {[%emt 0:00:13]}
23. f4 {[%emt 0:01:15]} Ng3 {[%emt 0:05:59]} 24. Nxe5 {[%emt 0:01:56]} Rxe5 {
[%emt 0:00:25]} 25. fxe5 {[%emt 0:00:02]} Nxf1 {[%emt 0:01:29]} 26. Qxf1 {
[%emt 0:00:09]} Be6 {[%emt 0:04:02]} 27. Bxe6 {[%emt 0:01:58]} fxe6 {[%emt 0:
00:09]} 28. Qf6+ {[%emt 0:01:13]} Qxf6 {[%emt 0:00:07]} 29. exf6 Kg8 {[%emt 0:
01:15]} 30. Rf1 {[%emt 0:00:52]} Rxd3 {[%emt 0:00:24]} 31. Rf2 {[%emt 0:00:25]}
Kf7 {[%emt 0:00:33]} 32. Kh2 {[%emt 0:00:33]} b4 {[%emt 0:01:15]} 33. c4 {
[%emt 0:00:43]} b3 {[%emt 0:00:19]} 34. axb3 Rxb3 {[%emt 0:00:37]} 35. g4 Rb4 {
[%emt 0:00:44]} 36. g5 Rxc4 {[%emt 0:00:42]} 37. Kg3 Rd4 {[%emt 0:01:28]} 38.
h4 {[%emt 0:00:37]} a5 {[%emt 0:00:53]} 39. h5 {[%emt 0:00:34]} Rd5 {[%emt 0:
10:20]} 40. g6+ {[%emt 0:00:35]} hxg6 {[%emt 0:00:05]} 41. hxg6+ {[%emt 0:00:
01]} Kf8 {[%emt 0:00:29]} 42. Kg4 {[%emt 0:00:47]} Rd1 {[%emt 0:00:44]} 43. f7
{[%emt 0:00:45]} Rg1+ {[%emt 0:00:17]} 44. Kh5 {[%emt 0:00:20]} c4 {[%emt 0:00:
49]} 45. Rd2 {[%emt 0:00:25]} Ke7 {[%emt 0:01:18]} 46. Rd7+ {[%emt 0:00:44]}
Kxd7 {[%emt 0:01:04]} 47. f8=Q {[%emt 0:00:01]} Rh1+ {[%emt 0:00:10]} 48. Kg5 {
[%emt 0:00:03]} Rg1+ {[%emt 0:00:10]} 49. Kh6 {[%emt 0:00:02]} 1-0

[Event "2018 O2C Doeberl Cup Major"]
[Site "Canberra Southern Cross Club"]
[Date "2018.03.31"]
[Round "4.1"]
[White "Clarke, Matthew"]
[Black "Mcgowan, Cameron"]
[Result "1-0"]
[ECO "E99"]
[WhiteElo "1929"]
[BlackElo "1960"]
[PlyCount "75"]
[EventDate "2018.??.??"]
[TimeControl "90+30"]

1. d4 {[%emt 0:06:13]} Nf6 {[%emt 0:00:05]} 2. c4 {[%emt 0:00:09]} g6 {[%emt 0:
00:04]} 3. Nc3 {[%emt 0:00:09]} Bg7 {[%emt 0:00:02]} 4. e4 {[%emt 0:00:11]} d6
{[%emt 0:00:05]} 5. Nf3 {[%emt 0:00:08]} O-O {[%emt 0:00:07]} 6. Be2 {[%emt 0:
00:05]} e5 {[%emt 0:00:06]} 7. O-O {[%emt 0:00:10]} Nc6 {[%emt 0:00:49]} 8. d5
{[%emt 0:00:27]} Ne7 {[%emt 0:00:04]} 9. Ne1 {[%emt 0:00:34]} Nd7 {[%emt 0:00:
12]} 10. Be3 {[%emt 0:00:25]} f5 {[%emt 0:00:20]} 11. f3 {[%emt 0:00:11]} f4 {
[%emt 0:00:08]} 12. Bf2 {[%emt 0:00:07]} g5 {[%emt 0:00:09]} 13. Rc1 {[%emt 0:
00:12]} Rf6 {[%emt 0:02:07]} 14. Nd3 {[%emt 0:02:00]} Rh6 {[%emt 0:01:32]} 15.
c5 {[%emt 0:02:14]} Qe8 {[%emt 0:02:14]} 16. g4 {[%emt 0:08:02]} fxg3 {[%emt 0:
08:17]} 17. Bxg3 {[%emt 0:00:09]} a6 {[%emt 0:02:22]} 18. cxd6 {[%emt 0:03:12]}
cxd6 {[%emt 0:00:15]} 19. Rf2 {[%emt 0:02:26]} Ng6 {[%emt 0:15:10]} 20. Qa4 {
[%emt 0:04:34]} Nf4 {[%emt 0:05:50]} 21. Bf1 {[%emt 0:01:01]} Bf6 {[%emt 0:08:
11]} 22. b4 {[%emt 0:02:44]} Bd8 {[%emt 0:02:37]} 23. Rfc2 {[%emt 0:03:20]}
Bb6+ {[%emt 0:03:45]} 24. Bf2 {[%emt 0:04:37]} Bxf2+ {[%emt 0:12:51]} 25. Nxf2
{[%emt 0:01:08]} b5 {[%emt 0:03:19]} 26. Nxb5 {[%emt 0:06:15]} Nb6 {[%emt 0:02:
39]} 27. Qa5 {[%emt 0:00:57]} Qh5 {[%emt 0:01:47]} 28. Nh1 {[%emt 0:12:46]}
axb5 {[%emt 0:08:30]} 29. Qxb6 {[%emt 0:00:22]} Bh3 {[%emt 0:00:47]} 30. Qe3 {
[%emt 0:07:37]} Rf8 {[%emt 0:07:38]} 31. Ng3 {[%emt 0:01:36]} Qh4 {[%emt 0:02:
36]} 32. Bxh3 {[%emt 0:01:43]} Nxh3+ {[%emt 0:01:04]} 33. Kh1 {[%emt 0:01:17]}
Qf4 {[%emt 0:07:34]} 34. Qxf4 {[%emt 0:02:02]} gxf4 {[%emt 0:00:19]} 35. Nf5 {
[%emt 0:00:18]} Rg6 {[%emt 0:00:26]} 36. Ne7+ {[%emt 0:00:24]} Kf7 {[%emt 0:00:
49]} 37. Nxg6 {[%emt 0:00:13]} Kxg6 {[%emt 0:00:02]} 38. Rg2+ {[%emt 0:05:31]}
1-0

[Event "2018 O2C Doeberl Cup Major"]
[Site "Canberra Southern Cross Club"]
[Date "2018.04.01"]
[Round "5.1"]
[White "Bayaca, Sterling"]
[Black "Clarke, Matthew"]
[Result "1/2-1/2"]
[ECO "B50"]
[WhiteElo "1764"]
[BlackElo "1929"]
[PlyCount "134"]
[EventDate "2018.??.??"]
[TimeControl "90+30"]

1. e4 {[%emt 0:02:18]} c5 {[%emt 0:00:07]} 2. Nf3 {[%emt 0:00:12]} d6 {[%emt 0:
00:09]} 3. c3 {[%emt 0:00:08]} Nf6 {[%emt 0:00:11]} 4. Be2 {[%emt 0:00:09]} g6
{[%emt 0:01:04]} 5. O-O {[%emt 0:01:24]} Bg7 {[%emt 0:00:24]} 6. d3 {[%emt 0:
02:05]} O-O {[%emt 0:00:46]} 7. h3 {[%emt 0:01:33]} Nc6 {[%emt 0:01:10]} 8. Be3
{[%emt 0:00:28]} b6 {[%emt 0:05:53]} 9. Nbd2 {[%emt 0:03:39]} Bb7 {[%emt 0:02:
10]} 10. d4 {[%emt 0:03:21]} cxd4 {[%emt 0:03:59]} 11. cxd4 {[%emt 0:00:16]} d5
{[%emt 0:01:03]} 12. e5 {[%emt 0:14:26]} Ne4 {[%emt 0:00:54]} 13. Qb1 {[%emt 0:
04:17]} Nxd2 {[%emt 0:07:27]} 14. Nxd2 {[%emt 0:02:15]} Rc8 {[%emt 0:01:36]}
15. Rc1 {[%emt 0:02:15]} Qd7 {[%emt 0:01:55]} 16. Rc3 {[%emt 0:04:15]} Na5 {
[%emt 0:06:06]} 17. Rxc8 {[%emt 0:09:44]} Rxc8 {[%emt 0:00:45]} 18. Qd1 {
[%emt 0:01:15]} Nc4 {[%emt 0:06:50]} 19. Nxc4 {[%emt 0:03:53]} dxc4 {[%emt 0:
00:25]} 20. Rc1 {[%emt 0:01:34]} b5 {[%emt 0:02:21]} 21. Qd2 {[%emt 0:02:04]}
e6 {[%emt 0:04:20]} 22. Rd1 {[%emt 0:00:32]} Bd5 {[%emt 0:02:29]} 23. Qa5 {
[%emt 0:02:09]} Qb7 {[%emt 0:02:02]} 24. Bf1 {[%emt 0:01:57]} Bf8 {[%emt 0:11:
39]} 25. Bd2 {[%emt 0:04:02]} b4 {[%emt 0:02:46]} 26. Rc1 {[%emt 0:08:34]} Qb6
{[%emt 0:00:22]} 27. Qxb6 {[%emt 0:01:09]} axb6 {[%emt 0:03:48]} 28. Bd3 {
[%emt 0:00:39]} b5 {[%emt 0:03:03]} 29. Bb1 {[%emt 0:02:18]} Be7 {[%emt 0:00:
17]} 30. f3 {[%emt 0:02:19]} f5 {[%emt 0:03:32]} 31. Kf2 {[%emt 0:02:41]} Kf7 {
[%emt 0:01:14]} 32. g3 Ke8 {[%emt 0:00:49]} 33. Be1 {[%emt 0:02:48]} Kd7 34. f4
{[%emt 0:01:49]} Rc6 {[%emt 0:00:39]} 35. Bd2 {[%emt 0:03:00]} Kc7 {[%emt 0:00:
34]} 36. Be1 {[%emt 0:00:27]} Kb6 {[%emt 0:00:14]} 37. Bd2 {[%emt 0:01:53]} Ka5
{[%emt 0:01:04]} 38. a3 {[%emt 0:02:09]} Ka4 {[%emt 0:10:00]} 39. axb4 {
[%emt 0:01:05]} Be4 {[%emt 0:00:14]} 40. Bc3 {[%emt 0:01:23]} Bxb1 {[%emt 0:08:
31]} 41. Rxb1 {[%emt 0:00:05]} Bxb4 {[%emt 0:00:27]} 42. Ra1+ {[%emt 0:00:39]}
Kb3 {[%emt 0:00:09]} 43. Bxb4 {[%emt 0:00:18]} Kxb4 {[%emt 0:00:06]} 44. Ra3 {
[%emt 0:00:05]} Rc7 {[%emt 0:00:38]} 45. Ke3 {[%emt 0:00:27]} Rd7 {[%emt 0:00:
28]} 46. g4 {[%emt 0:01:20]} h6 {[%emt 0:00:53]} 47. gxf5 {[%emt 0:00:34]} gxf5
{[%emt 0:00:16]} 48. Ra6 {[%emt 0:00:39]} Re7 {[%emt 0:10:21]} 49. Rb6 {
[%emt 0:00:15]} Ka5 {[%emt 0:00:34]} 50. Rc6 {[%emt 0:00:45]} Ka4 {[%emt 0:00:
15]} 51. Kd2 {[%emt 0:00:45]} Kb3 {[%emt 0:00:14]} 52. Rb6 {[%emt 0:00:41]} b4
{[%emt 0:00:12]} 53. Kc1 {[%emt 0:00:22]} c3 {[%emt 0:00:27]} 54. bxc3 {
[%emt 0:00:23]} Kxc3 {[%emt 0:00:09]} 55. Rd6 {[%emt 0:00:44]} Rg7 {[%emt 0:00:
56]} 56. Rc6+ {[%emt 0:00:15]} Kxd4 {[%emt 0:00:42]} 57. Rxe6 {[%emt 0:00:04]}
h5 {[%emt 0:03:56]} 58. Rb6 {[%emt 0:00:46]} Kc5 {[%emt 0:01:22]} 59. Rb8 {
[%emt 0:00:06]} Rg3 {[%emt 0:00:33]} 60. e6 {[%emt 0:01:26]} Re3 {[%emt 0:00:
14]} 61. Rf8 {[%emt 0:00:31]} Kd6 {[%emt 0:00:58]} 62. Rxf5 {[%emt 0:00:10]}
Rxh3 {[%emt 0:00:49]} 63. Re5 {[%emt 0:00:34]} Ke7 {[%emt 0:00:10]} 64. f5 {
[%emt 0:00:37]} Rf3 {[%emt 0:00:10]} 65. f6+ {[%emt 0:00:41]} Rxf6 {[%emt 0:00:
37]} 66. Rxh5 {[%emt 0:00:04]} Rxe6 {[%emt 0:00:42]} 67. Kb2 {[%emt 0:00:37]}
Rb6 {[%emt 0:00:36]} 1/2-1/2

[Event "2018 O2C Doeberl Cup Major"]
[Site "Canberra Southern Cross Club"]
[Date "2018.04.01"]
[Round "6.1"]
[White "Tsagarakis, Angelo"]
[Black "Clarke, Matthew"]
[Result "0-1"]
[ECO "B22"]
[WhiteElo "1763"]
[BlackElo "1929"]
[PlyCount "74"]
[EventDate "2018.??.??"]
[TimeControl "90+30"]

1. e4 {[%emt 0:07:32]} c5 {[%emt 0:00:11]} 2. c3 {[%emt 0:00:40]} d5 {[%emt 0:
00:18]} 3. exd5 {[%emt 0:00:17]} Qxd5 {[%emt 0:00:14]} 4. Na3 {[%emt 0:00:19]}
Nc6 {[%emt 0:02:14]} 5. d4 {[%emt 0:09:21]} cxd4 {[%emt 0:04:28]} 6. Nb5 {
[%emt 0:02:46]} Qd8 {[%emt 0:02:19]} 7. cxd4 {[%emt 0:00:43]} a6 {[%emt 0:01:
09]} 8. Qa4 {[%emt 0:20:27]} Bf5 {[%emt 0:04:35]} 9. d5 {[%emt 0:02:26]} axb5 {
[%emt 0:02:17]} 10. Qxb5 {[%emt 0:02:53]} Ra5 {[%emt 0:00:56]} 11. Qxb7 {
[%emt 0:02:24]} Qxd5 {[%emt 0:01:52]} 12. Be3 {[%emt 0:01:17]} e5 {[%emt 0:06:
30]} 13. Rd1 {[%emt 0:02:50]} Bb4+ {[%emt 0:01:44]} 14. Bd2 {[%emt 0:00:10]}
Ra7 {[%emt 0:02:50]} 15. Qb5 {[%emt 0:03:34]} Rd7 {[%emt 0:04:15]} 16. Nf3 {
[%emt 0:03:00]} Nge7 {[%emt 0:06:49]} 17. a3 {[%emt 0:06:24]} Bxd2+ {[%emt 0:
03:55]} 18. Rxd2 {[%emt 0:00:06]} Qe4+ {[%emt 0:03:03]} 19. Be2 {[%emt 0:01:17]
} Rxd2 {[%emt 0:01:24]} 20. Nxd2 {[%emt 0:00:23]} Qxg2 {[%emt 0:01:07]} 21. Bf3
{[%emt 0:00:24]} Qg6 {[%emt 0:00:15]} 22. Nc4 {[%emt 0:09:09]} e4 {[%emt 0:05:
00]} 23. Be2 {[%emt 0:08:21]} O-O {[%emt 0:01:41]} 24. Qc5 {[%emt 0:00:51]} Qf6
{[%emt 0:01:44]} 25. Ne3 {[%emt 0:00:51]} Bg6 {[%emt 0:01:45]} 26. h4 {[%emt 0:
00:44]} h6 {[%emt 0:01:54]} 27. b4 {[%emt 0:01:39]} Qa1+ {[%emt 0:01:46]} 28.
Bd1 {[%emt 0:00:19]} Qxa3 {[%emt 0:00:23]} 29. h5 {[%emt 0:00:35]} Bh7 {
[%emt 0:00:57]} 30. Rg1 {[%emt 0:00:13]} Qxb4+ {[%emt 0:01:38]} 31. Qxb4 {
[%emt 0:00:01]} Nxb4 {[%emt 0:00:12]} 32. Bb3 {[%emt 0:00:16]} Nd3+ {[%emt 0:
00:51]} 33. Kf1 {[%emt 0:00:30]} Rb8 {[%emt 0:00:55]} 34. Bc2 {[%emt 0:00:47]}
Ra8 {[%emt 0:00:46]} 35. Ke2 {[%emt 0:00:24]} Nc6 {[%emt 0:00:47]} 36. Bb1 {
[%emt 0:01:14]} Nd4+ {[%emt 0:00:37]} 37. Kd2 {[%emt 0:00:06]} Nf3+ {[%emt 0:
00:11]} 0-1

[Event "2018 O2C Doeberl Cup Major"]
[Site "Canberra Southern Cross Club"]
[Date "2018.04.02"]
[Round "7.1"]
[White "Clarke, Matthew"]
[Black "Mendes Da Costa, Alex"]
[Result "1-0"]
[ECO "D02"]
[WhiteElo "1929"]
[BlackElo "1907"]
[PlyCount "137"]
[EventDate "2018.??.??"]
[TimeControl "90+30"]

1. d4 {[%emt 0:09:55]} Nf6 {[%emt 0:00:10]} 2. Bf4 {[%emt 0:00:08]} d5 {
[%emt 0:12:01]} 3. e3 {[%emt 0:01:01]} c5 {[%emt 0:01:29]} 4. c3 {[%emt 0:00:
46]} Nc6 {[%emt 0:00:39]} 5. Nd2 {[%emt 0:00:40]} e6 {[%emt 0:02:26]} 6. Ngf3 {
[%emt 0:01:03]} Be7 {[%emt 0:03:30]} 7. Ne5 {[%emt 0:03:15]} Qb6 {[%emt 0:05:
13]} 8. Rb1 {[%emt 0:02:45]} Nxe5 {[%emt 0:02:07]} 9. dxe5 {[%emt 0:00:48]} Nd7
{[%emt 0:01:55]} 10. Bd3 {[%emt 0:02:17]} Nf8 {[%emt 0:04:30]} 11. Nf3 {
[%emt 0:03:24]} Bd7 {[%emt 0:01:29]} 12. Qe2 {[%emt 0:02:37]} Bc6 {[%emt 0:02:
16]} 13. h4 {[%emt 0:03:40]} h6 {[%emt 0:07:20]} 14. h5 {[%emt 0:03:29]} Nd7 {
[%emt 0:06:27]} 15. O-O {[%emt 0:05:10]} O-O-O {[%emt 0:04:51]} 16. b4 {
[%emt 0:02:38]} cxb4 {[%emt 0:05:37]} 17. cxb4 {[%emt 0:01:00]} Ba4 {[%emt 0:
00:26]} 18. Nd4 {[%emt 0:02:39]} Kb8 {[%emt 0:06:16]} 19. Qb2 {[%emt 0:02:13]}
a6 {[%emt 0:00:40]} 20. Qa3 {[%emt 0:00:48]} Bb5 {[%emt 0:00:19]} 21. Bxb5 {
[%emt 0:03:44]} axb5 {[%emt 0:00:16]} 22. Qd3 {[%emt 0:00:12]} Rc8 {[%emt 0:01:
50]} 23. Qxb5 {[%emt 0:02:48]} Qxb5 {[%emt 0:00:23]} 24. Nxb5 {[%emt 0:00:09]}
Rc4 {[%emt 0:03:04]} 25. a3 {[%emt 0:00:50]} Rhc8 {[%emt 0:00:19]} 26. Rfd1 {
[%emt 0:04:32]} b6 {[%emt 0:00:36]} 27. Rd4 {[%emt 0:03:12]} Kb7 {[%emt 0:03:
19]} 28. Rxc4 {[%emt 0:02:05]} Rxc4 {[%emt 0:00:06]} 29. Rb3 {[%emt 0:00:57]}
Ka6 {[%emt 0:01:28]} 30. Nd4 {[%emt 0:00:12]} b5 {[%emt 0:01:15]} 31. g4 {
[%emt 0:02:05]} Nb6 {[%emt 0:02:15]} 32. Kg2 {[%emt 0:01:55]} Na4 {[%emt 0:02:
34]} 33. Nf3 {[%emt 0:03:05]} Nc3 {[%emt 0:04:52]} 34. Nd2 {[%emt 0:00:37]} Rc8
{[%emt 0:01:08]} 35. Kf3 {[%emt 0:01:21]} Na2 {[%emt 0:00:57]} 36. Nb1 {
[%emt 0:05:25]} Rc2 {[%emt 0:00:57]} 37. Rd3 {[%emt 0:04:30]} Rc4 {[%emt 0:02:
47]} 38. Rd4 {[%emt 0:04:47]} Nc1 {[%emt 0:01:39]} 39. Rxc4 {[%emt 0:00:49]}
bxc4 {[%emt 0:00:49]} 40. Nc3 {[%emt 0:01:17]} Nd3 {[%emt 0:00:32]} 41. Bg3 {
[%emt 0:02:44]} f6 {[%emt 0:00:28]} 42. Bh4 {[%emt 0:15:42]} Nxe5+ {[%emt 0:00:
11]} 43. Kg3 {[%emt 0:02:32]} Bd6 {[%emt 0:00:15]} 44. f4 {[%emt 0:00:12]} Nd3
{[%emt 0:00:47]} 45. Kf3 {[%emt 0:00:14]} f5 {[%emt 0:02:30]} 46. gxf5 {
[%emt 0:00:44]} exf5 {[%emt 0:00:44]} 47. Nxd5 {[%emt 0:00:25]} Kb5 {[%emt 0:
00:27]} 48. Nc3+ {[%emt 0:00:22]} Kc6 {[%emt 0:00:14]} 49. Ke2 {[%emt 0:01:24]}
Kd7 {[%emt 0:04:08]} 50. Kd2 {[%emt 0:00:29]} Kc6 {[%emt 0:00:34]} 51. Bd8 {
[%emt 0:00:47]} Nf2 {[%emt 0:01:14]} 52. Bh4 {[%emt 0:00:32]} Nd3 {[%emt 0:01:
07]} 53. Ne2 {[%emt 0:01:00]} Kd5 {[%emt 0:00:42]} 54. Ng3 {[%emt 0:01:14]} Nf2
{[%emt 0:02:54]} 55. Nxf5 {[%emt 0:00:39]} Ne4+ {[%emt 0:00:03]} 56. Kc2 {
[%emt 0:00:22]} Bf8 {[%emt 0:00:05]} 57. Be7 {[%emt 0:01:18]} Bxe7 {[%emt 0:00:
26]} 58. Nxe7+ {[%emt 0:00:14]} Ke6 {[%emt 0:00:18]} 59. Ng6 {[%emt 0:01:21]}
Ng3 {[%emt 0:01:30]} 60. a4 {[%emt 0:00:16]} Nxh5 {[%emt 0:00:17]} 61. a5 {
[%emt 0:00:18]} Nf6 {[%emt 0:00:27]} 62. Kc3 {[%emt 0:01:28]} Kd5 {[%emt 0:00:
32]} 63. Ne7+ {[%emt 0:00:20]} Ke6 {[%emt 0:00:22]} 64. Ng6 {[%emt 0:00:46]}
Kd5 {[%emt 0:00:08]} 65. b5 {[%emt 0:01:20]} Kc5 {[%emt 0:00:19]} 66. b6 {
[%emt 0:00:15]} Ne4+ {[%emt 0:00:34]} 67. Kc2 {[%emt 0:00:22]} Nd6 {[%emt 0:00:
14]} 68. b7 {[%emt 0:01:07]} Nxb7 {[%emt 0:01:07]} 69. a6 {[%emt 0:00:06]} 1-0

[Event "2018 O2C Doeberl Cup Minor"]
[Site "Canberra Southern Cross Club"]
[Date "2018.03.30"]
[Round "1.2"]
[White "Lo, Jonathan"]
[Black "Cooke, Steven"]
[Result "1/2-1/2"]
[ECO "C96"]
[WhiteElo "1050"]
[BlackElo "1576"]
[PlyCount "128"]
[EventDate "2018.??.??"]
[TimeControl "90+30"]
[WhiteClock "0:10:21"]
[BlackClock "0:54:16"]

1. e4 {[%emt 0:00:00]} e5 {[%emt 0:00:00]} 2. Nf3 {[%emt 0:00:00]} Nc6 {
[%emt 0:00:00]} 3. Bb5 {[%emt 0:00:00]} Nf6 {[%emt 0:00:00]} 4. O-O {[%emt 0:
00:00]} a6 {[%emt 0:00:00]} 5. Ba4 {[%emt 0:00:00]} Be7 {[%emt 0:00:00]} 6. Re1
{[%emt 0:00:00]} O-O {[%emt 0:00:00]} 7. h3 {[%emt 0:00:00]} b5 {[%emt 0:00:00]
} 8. Bb3 {[%emt 0:00:00]} d6 {[%emt 0:00:00]} 9. c3 {[%emt 0:00:00]} Na5 {
[%emt 0:00:00]} 10. Bc2 {[%emt 0:00:00]} c5 {[%emt 0:00:00]} 11. d4 {[%emt 0:
00:00]} Nc6 {[%emt 0:00:00]} 12. d5 {[%emt 0:00:00]} Nb8 {[%emt 0:00:00]} 13.
c4 {[%emt 0:00:00]} Nbd7 {[%emt 0:00:00]} 14. Nbd2 {[%emt 0:00:00]} Nb6 {
[%emt 0:00:00]} 15. b3 {[%emt 0:00:00]} h6 {[%emt 0:00:00]} 16. Bb2 {[%emt 0:
00:00]} Rb8 {[%emt 0:00:00]} 17. Rb1 {[%emt 0:00:00]} g5 {[%emt 0:00:00]} 18.
g4 {[%emt 0:00:00]} h5 {[%emt 0:00:00]} 19. Nh2 {[%emt 0:00:00]} hxg4 {[%emt 0:
00:00]} 20. hxg4 {[%emt 0:00:00]} Kg7 {[%emt 0:00:00]} 21. Kg2 {[%emt 0:00:00]}
Rh8 {[%emt 0:00:00]} 22. Rh1 {[%emt 0:00:00]} Qg8 {[%emt 0:00:00]} 23. f3 {
[%emt 0:00:00]} Qh7 {[%emt 0:00:00]} 24. Kf2 {[%emt 0:00:00]} Qh4+ {[%emt 0:00:
00]} 25. Ke2 {[%emt 0:00:00]} Nfd7 {[%emt 0:00:00]} 26. Qe1 {[%emt 0:00:00]}
Nf8 {[%emt 0:00:00]} 27. Qxh4 {[%emt 0:00:00]} Rxh4 {[%emt 0:00:00]} 28. cxb5 {
[%emt 0:00:00]} axb5 {[%emt 0:00:00]} 29. Ndf1 {[%emt 0:00:00]} Ng6 {[%emt 0:
00:00]} 30. Bc1 {[%emt 0:00:00]} Ra8 {[%emt 0:00:00]} 31. Ra1 {[%emt 0:00:00]}
Rh3 {[%emt 0:00:00]} 32. Kf2 {[%emt 0:00:00]} Nf4 {[%emt 0:00:00]} 33. Ng3 {
[%emt 0:00:00]} Rh6 {[%emt 0:00:00]} 34. Bxf4 {[%emt 0:00:00]} gxf4 {[%emt 0:
00:00]} 35. Nf5+ {[%emt 0:00:00]} Bxf5 {[%emt 0:00:00]} 36. gxf5 {[%emt 0:00:
00]} Rah8 {[%emt 0:00:00]} 37. Rhg1+ {[%emt 0:00:00]} Kf8 {[%emt 0:00:00]} 38.
Ng4 {[%emt 0:00:00]} Bh4+ {[%emt 0:00:00]} 39. Ke2 {[%emt 0:00:00]} R6h7 {
[%emt 0:00:00]} 40. a4 {[%emt 0:00:00]} bxa4 {[%emt 0:00:00]} 41. bxa4 {
[%emt 0:00:00]} Ke7 {[%emt 0:00:00]} 42. a5 {[%emt 0:00:00]} Na8 {[%emt 0:00:
00]} 43. Rgb1 {[%emt 0:00:00]} Rc8 {[%emt 0:00:00]} 44. a6 {[%emt 0:00:00]}
Rhh8 {[%emt 0:00:00]} 45. a7 {[%emt 0:00:00]} Kd7 {[%emt 0:00:00]} 46. Ba4+ {
[%emt 0:00:00]} Kc7 {[%emt 0:04:09]} 47. Bc6 {[%emt 0:00:00]} Nb6 {[%emt 0:00:
56]} 48. Rxb6 {[%emt 0:00:00]} Kxb6 {[%emt 0:00:27]} 49. a8=N+ {[%emt 0:00:00]}
Rxa8 {[%emt 0:00:13]} 50. Rxa8 {[%emt 0:00:00]} Rxa8 {[%emt 0:00:12]} 51. Bxa8
{[%emt 0:00:00]} f6 {[%emt 0:00:02]} 52. Bc6 {[%emt 0:00:00]} c4 {[%emt 0:00:
43]} 53. Kd2 {[%emt 0:00:00]} Kc5 {[%emt 0:00:13]} 54. Kc2 {[%emt 0:00:00]} Kd4
{[%emt 0:00:46]} 55. Ba4 {[%emt 0:00:00]} Kc5 {[%emt 0:00:31]} 56. Nh6 {
[%emt 0:00:00]} Be1 {[%emt 0:05:50]} 57. Ng4 {[%emt 0:00:00]} Bh4 {[%emt 0:00:
15]} 58. Nh2 {[%emt 0:00:00]} Kd4 {[%emt 0:00:20]} 59. Nf1 {[%emt 0:00:00]} c3
{[%emt 0:03:48]} 60. Bb5 {[%emt 0:00:00]} Be1 {[%emt 0:01:26]} 61. Kb3 {
[%emt 0:00:59]} Bg3 {[%emt 0:00:37]} 62. Kc2 {[%emt 0:00:00]} Be1 {[%emt 0:01:
41]} 63. Nh2 {[%emt 0:01:27]} Ke3 {[%emt 0:00:04]} 64. Nf1+ {[%emt 0:00:17]}
Kd4 {[%emt 0:00:02]} 1/2-1/2